fUST/lending_fUST_20250921
["ID","MTS","AMOUNT","RATE_DAILY","PERIOD"]
[386572724,1758404916716,9697.22192743,0.00019321,2]
[386572725,1758404916741,10000.01,0.00019321,2]
[386572726,1758404916764,10000.01,0.00019321,2]
[386572727,1758404916788,767.41699727,0.00019321,2]
[386572728,1758404917793,200.7883247,0.00019326,2]
[386572729,1758404942623,188.0,0.00019704,2]
[386572730,1758404944758,220.9788856,0.00019704,2]
[386572731,1758404946115,-673.28398413,0.000199,2]
[386572732,1758404948415,1233.54,0.00019425,2]
[386572733,1758404954137,-2796.17325039,0.000199,2]
[386572734,1758404964121,-185.82192267,0.000199,2]
[386572735,1758404964143,-151.80425748,0.0002,2]
[386572736,1758404964166,-3.7553588,0.00020007,2]
[386572737,1758404964190,-168.0,0.0002016,2]
[386572738,1758404964210,-151.80425748,0.00020274,2]
[386572739,1758404964230,-160.0,0.00020302,2]
[386572740,1758404964251,-160.0,0.00020303,2]
[386572741,1758404964272,-160.0,0.00020303,2]
[386572742,1758404964292,-1200.0,0.00020303,2]
[386572743,1758404964313,-160.0,0.00020303,2]
[386572744,1758404964333,-300.0,0.00020313,2]
[386572745,1758404964355,-300.0,0.00020313,2]
[386572746,1758404964378,-2467.09,0.0002035,2]
[386572747,1758404964399,-1200.0,0.00020394,2]
[386572748,1758404964420,-300.0,0.00020394,2]
[386572749,1758404964442,-196.0,0.00020395,2]
[386572750,1758404964463,-171.23936896,0.00020395,2]
[386572751,1758404964488,-500.0,0.00020395,2]
[386572752,1758404964513,-325.75326683,0.00020395,2]
[386572753,1758405019372,680.528471,0.00019399,2]
[386572754,1758405029590,1188.57,0.00019426,2]
[386572801,1758405032011,-824.44,0.00020352,2]
[386572812,1758405032115,-102.48828399,0.00020352,2]
[386572814,1758405032131,-1450.21171601,0.00020352,2]
[386572816,1758405032141,-300.0,0.00020394,2]
[386572818,1758405032153,-129.78828899,0.00020394,2]
[386572939,1758405036229,-162.4569937,0.00019783,2]
[386572948,1758405038007,-102.86110421,0.00019783,2]
[386572949,1758405038016,-418.85625778,0.00020394,2]
[386573029,1758405040364,-5.94041256,0.00020394,2]
[386573031,1758405040375,-75.20332966,0.00020394,2]
[386573033,1758405040385,-196.15375145,0.00020394,2]
[386573358,1758405043732,153.578973,0.00024,30]
[386574047,1758405060790,-698.59829889,0.000199,2]
[386574048,1758405065293,-478.74425712,0.000199,2]
[386574049,1758405068468,-178.2430063,0.000199,2]
[386574050,1758405070513,-312.83258736,0.000199,2]
[386574051,1758405074162,-172.41388374,0.000199,2]
[386574052,1758405110627,1151.54,0.00019427,2]
[386574054,1758405118474,166.8725427,9.697e-05,2]
[386574055,1758405154007,-160.0,0.000199,2]
[386574056,1758405154041,-49.23258736,0.000199,2]
[386574057,1758405161605,-110.76741264,0.000199,2]
[386574058,1758405161641,-2106.45746065,0.000199,2]
[386574059,1758405161672,-160.0,0.0002,2]
[386574060,1758405161708,-2303.07,0.00020352,2]
[386574061,1758405161897,-1200.0,0.00020392,2]
[386574062,1758405161932,-465.68790521,0.00020393,2]
[386574063,1758405161964,-308.82258555,0.00020393,2]
[386574064,1758405161995,-500.0,0.00020393,2]
[386574065,1758405162025,-500.0,0.00020393,2]
[386574066,1758405162056,-500.0,0.00020393,2]
[386574067,1758405162087,-500.0,0.00020393,2]
[386574068,1758405162119,-169.79218785,0.00020393,2]
[386574069,1758405162152,-500.0,0.00020393,2]
[386574070,1758405162186,-211.40464278,0.00020393,2]
[386574071,1758405168169,-7362.38044501,0.00020393,2]
[386574072,1758405175328,-10000.01,0.00020393,2]
[386574073,1758405176554,-10000.01,0.00020393,2]
[386574074,1758405176697,-10000.01,0.00020393,2]
[386574075,1758405176953,-10000.01,0.00020393,2]
[386574076,1758405177206,-2637.57955499,0.00020393,2]
[386574077,1758405177241,-288.59535722,0.00020393,2]
[386574078,1758405177280,-500.0,0.00020393,2]
[386574079,1758405177313,-500.0,0.00020393,2]
[386574080,1758405177349,-595.07249777,0.00020393,2]
[386574081,1758405177383,-457.51518004,0.00020393,2]
[386574082,1758405177435,-42.48481996,0.00020393,2]
[386574083,1758405177467,-303.84624855,0.00020393,2]
[386574084,1758405177498,-500.0,0.00020393,2]
[386574085,1758405177530,-500.0,0.00020393,2]
[386574086,1758405177564,-500.0,0.00020393,2]
[386574087,1758405177594,-443.85087166,0.00020393,2]
[386574088,1758405177626,-500.0,0.00020393,2]
[386574089,1758405177657,-500.0,0.00020393,2]
[386574090,1758405177688,-614.93661226,0.00020393,2]
[386574091,1758405177719,-500.0,0.00020393,2]
[386574092,1758405177753,-500.0,0.00020393,2]
[386574093,1758405178033,-500.0,0.00020393,2]
[386574094,1758405178069,-500.0,0.00020393,2]
[386574095,1758405178101,-500.0,0.00020393,2]
[386574096,1758405178133,-500.0,0.00020393,2]
[386574097,1758405178166,-500.0,0.00020393,2]
[386574098,1758405178200,-500.0,0.00020393,2]
[386574099,1758405178231,-443.74435491,0.00020393,2]
[386574100,1758405178263,-500.0,0.00020393,2]
[386574101,1758405178295,-500.0,0.00020393,2]
[386574102,1758405178328,-500.0,0.00020393,2]
[386574103,1758405178727,-232.2577151,0.00020125,2]
[386574104,1758405178747,-112.52129018,0.00020125,2]
[386574105,1758405181427,-10000.01,0.00020125,2]
[386574106,1758405181574,-3712.79651012,0.00020125,2]
[386574107,1758405181607,-500.0,0.00020393,2]
[386574108,1758405181642,-500.0,0.00020393,2]
[386574109,1758405181678,-74.41697976,0.00020393,2]
[386574110,1758405181786,-425.58302024,0.00020393,2]
[386574111,1758405181822,-500.0,0.00020393,2]
[386574112,1758405181854,-500.0,0.00020393,2]
[386574113,1758405181891,-500.0,0.00020393,2]
[386574114,1758405181926,-500.0,0.00020393,2]
[386574115,1758405181961,-500.0,0.00020393,2]
[386574116,1758405181998,-500.0,0.00020393,2]
[386574117,1758405182035,-500.0,0.00020393,2]
[386574118,1758405182069,-527.25446762,0.00020393,2]
[386574119,1758405182104,-500.0,0.00020393,2]
[386574120,1758405182140,-445.50106476,0.00020393,2]
[386574121,1758405182181,-54.49893524,0.00020393,2]
[386574122,1758405182217,-500.0,0.00020393,2]
[386574123,1758405182252,-500.0,0.00020393,2]
[386574124,1758405182288,-500.0,0.00020393,2]
[386574125,1758405182324,-500.0,0.00020393,2]
[386574126,1758405182461,-500.0,0.00020393,2]
[386574127,1758405182498,-500.0,0.00020393,2]
[386574128,1758405182534,-500.0,0.00020393,2]
[386574129,1758405182569,-500.0,0.00020393,2]
[386574130,1758405182604,-500.0,0.00020393,2]
[386574131,1758405182635,-391.01212952,0.00020394,2]
[386574132,1758405182775,-108.98787048,0.00020394,2]
[386574133,1758405182807,-170.21171101,0.00020394,2]
[386574134,1758405182835,-300.0,0.00020394,2]
[386574135,1758405182866,-1200.0,0.00020394,2]
[386574136,1758405182897,-160.0,0.00020396,2]
[386574137,1758405182928,-171.57176108,0.00020396,2]
[386574138,1758405183402,-300.0,0.00020392,2]
[386574139,1758405183640,-5641.95412058,0.00020396,2]
[386574140,1758405183666,-5562.29551645,0.00020396,2]
[386574141,1758405183675,-480.0,0.00020396,2]
[386574142,1758405183684,-480.0,0.00020396,2]
[386574143,1758405183693,-480.0,0.00020396,2]
[386574144,1758405183703,-480.0,0.00020396,2]
[386574145,1758405183712,-480.0,0.00020397,2]
[386574146,1758405183721,-480.0,0.00020397,2]
[386574147,1758405183731,-480.0,0.00020397,2]
[386574148,1758405183740,-480.0,0.00020397,2]
[386574149,1758405183750,-480.0,0.00020397,2]
[386574150,1758405183759,-117.71448355,0.00020397,2]
[386574151,1758405183781,-457.92967819,0.00020397,2]
[386574152,1758405183790,-480.0,0.00020397,2]
[386574153,1758405183799,-480.0,0.00020397,2]
[386574154,1758405183808,-150.0,0.00020397,2]
[386574155,1758405183817,-480.0,0.00020397,2]
[386574156,1758405183827,-169.88913041,0.00020397,2]
[386574157,1758405183837,-480.0,0.00020397,2]
[386574158,1758405183846,-480.0,0.00020397,2]
[386574159,1758405183855,-480.0,0.00020397,2]
[386574160,1758405183865,-277.46909714,0.00020397,2]
[386574161,1758405183874,-480.0,0.00020397,2]
[386574162,1758405183884,-480.0,0.00020397,2]
[386574163,1758405183893,-678.78,0.00020397,2]
[386574164,1758405183903,-482.34976014,0.00020397,2]
[386574165,1758405183913,-1734.82,0.00020397,2]
[386574166,1758405183922,-480.0,0.00020397,2]
[386574167,1758405183932,-480.0,0.00020397,2]
[386574168,1758405183942,-480.0,0.00020397,2]
[386574169,1758405183951,-690.33,0.00020397,2]
[386574170,1758405183960,-78.44233412,0.00020397,2]
[386574171,1758405183979,-159.34494387,0.00020397,2]
[386574172,1758405183989,-480.0,0.00020397,2]
[386574173,1758405183998,-480.0,0.00020397,2]
[386574174,1758405184008,-480.0,0.00020397,2]
[386574175,1758405184017,-923.24,0.00020397,2]
[386574176,1758405184027,-873.95,0.00020397,2]
[386574177,1758405184036,-480.0,0.00020397,2]
[386574178,1758405184045,-480.0,0.00020397,2]
[386574179,1758405184055,-480.0,0.00020397,2]
[386574180,1758405184064,-480.0,0.00020397,2]
[386574181,1758405184073,-438.08554039,0.00020397,2]
[386574182,1758405184083,-480.0,0.00020409,2]
[386574183,1758405184092,-480.0,0.00020409,2]
[386574184,1758405184102,-897.19,0.00020409,2]
[386574185,1758405184111,-1216.12,0.00020409,2]
[386574186,1758405184120,-480.0,0.00020409,2]
[386574187,1758405184129,-480.0,0.00020409,2]
[386574188,1758405184139,-212.07951574,0.00020409,2]
[386574189,1758405184158,-300.0,0.00020409,2]
[386574190,1758405184175,-395.28048426,0.00020409,2]
[386574191,1758405184185,-1140.41,0.00020409,2]
[386574192,1758405184194,-480.0,0.00020409,2]
[386574193,1758405184204,-532.05501783,0.00020409,2]
[386574194,1758405184213,-693.04,0.00020409,2]
[386574195,1758405184223,-480.0,0.00020409,2]
[386574196,1758405184232,-500.0,0.00020473,2]
[386574197,1758405184242,-500.0,0.00020473,2]
[386574198,1758405184252,-500.0,0.00020473,2]
[386574199,1758405184261,-500.0,0.00020473,2]
[386574200,1758405184271,-500.0,0.00020473,2]
[386574201,1758405184280,-500.0,0.00020473,2]
[386574202,1758405184289,-500.0,0.00020473,2]
[386574203,1758405184299,-495.9798274,0.00020473,2]
[386574204,1758405184308,-500.0,0.00020473,2]
[386574205,1758405184317,-500.0,0.00020473,2]
[386574206,1758405184326,-500.0,0.00020473,2]
[386574207,1758405184335,-183.24467051,0.00020473,2]
[386574208,1758405184353,-316.75532949,0.00020473,2]
[386574209,1758405184362,-500.68711368,0.00020473,2]
[386574210,1758405184372,-500.0,0.00020473,2]
[386574211,1758405184381,-500.0,0.00020473,2]
[386574212,1758405184391,-500.0,0.00020473,2]
[386574213,1758405184400,-500.0,0.00020473,2]
[386574214,1758405184409,-500.0,0.00020473,2]
[386574215,1758405184418,-500.0,0.00020473,2]
[386574216,1758405184428,-579.54022766,0.00020473,2]
[386574217,1758405184437,-500.0,0.00020473,2]
[386574218,1758405184447,-500.0,0.00020473,2]
[386574219,1758405184456,-500.0,0.00020473,2]
[386574220,1758405184465,-500.0,0.00020473,2]
[386574221,1758405184475,-506.33177552,0.00020473,2]
[386574222,1758405184484,-503.12597486,0.00020473,2]
[386574223,1758405184493,-259.25142593,0.00020473,2]
[386574224,1758405184502,-161.23280553,0.00020473,2]
[386574225,1758405184512,-512.73405615,0.00020473,2]
[386574226,1758405184521,-500.0,0.00020473,2]
[386574227,1758405184531,-500.0,0.00020473,2]
[386574228,1758405184541,-500.0,0.00020473,2]
[386574229,1758405184550,-160.35129118,0.00020477,2]
[386574230,1758405191334,480.0,0.00019423,2]
[386574231,1758405191365,179.75415021,0.00019423,2]
[386574232,1758405191394,450.47584979,0.00019423,2]
[386574233,1758405191500,-250.0,0.00020387,2]
[386574234,1758405191533,-495.2,0.00020393,2]
[386574235,1758405191567,-3621.82870882,0.00020477,2]
[386574236,1758405191599,-512.65258236,0.00020477,2]
[386574237,1758405191669,-240.64741764,0.00020477,2]
[386574238,1758405191707,-242.4397592,0.00020484,2]
[386574239,1758405191751,-9515.1304816,0.00020484,2]
[386574240,1758405191818,-2220.46,0.00020348,2]
[386574241,1758405191857,-5559.09,0.00020484,2]
[386574242,1758405191944,-4327.96719802,0.00020484,2]
[386574243,1758405191973,-1344.07560396,0.00020484,2]
[386574244,1758405192103,-490.98,0.00020486,3]
[386574245,1758405192136,-473.59948098,0.0002049,2]
[386574246,1758405192167,-480.0,0.00020495,2]
[386574247,1758405192198,-480.0,0.00020495,2]
[386574248,1758405192232,-480.0,0.00020495,2]
[386574249,1758405192265,-480.0,0.00020495,2]
[386574250,1758405192299,-480.0,0.00020495,2]
[386574251,1758405192332,-480.0,0.00020495,2]
[386574252,1758405192365,-480.0,0.00020495,2]
[386574253,1758405192399,-480.0,0.00020495,2]
[386574254,1758405192679,-390.85103804,0.00020495,2]
[386574255,1758405244357,-195.39741264,0.000199,2]
[386574256,1758405281418,1276.18,0.00019385,2]
[386574257,1758405296856,-3826.97558389,0.000199,2]
[386574258,1758405296887,-171.57176108,0.00020293,2]
[386574259,1758405296985,-726.73531006,0.00020293,2]
[386574260,1758405298281,-3257.24555204,0.00020293,2]
[386574261,1758405298306,-3485.51889592,0.00020293,2]
[386574262,1758405298399,-216.17580989,0.00020294,2]
[386574263,1758405298435,-325.98153365,0.00020294,2]
[386574264,1758405298468,-399.45249975,0.00020294,2]
[386574265,1758405298500,-549.30492832,0.00020294,2]
[386574266,1758405298529,-179.43740136,0.00020294,2]
[386574267,1758405298562,-500.0,0.00020294,2]
[386574268,1758405298597,-447.47271862,0.00020294,2]
[386574269,1758405298730,-500.0,0.00020294,2]
[386574270,1758405298894,-3764.36021682,0.00020295,2]
[386574271,1758405298914,-10000.01,0.00020295,2]
[386574272,1758405298940,-10000.01,0.00020295,2]
[386574273,1758405298956,-10000.01,0.00020295,2]
[386574274,1758405299060,-10000.01,0.00020295,2]
[386574275,1758405299182,-10000.01,0.00020295,2]
[386574276,1758405299341,-10000.01,0.00020295,2]
[386574277,1758405299466,-10000.01,0.00020295,2]
[386574278,1758405306856,-300.0,0.00020293,2]
[386574279,1758405306889,-300.0,0.00020293,2]
[386574280,1758405306921,-300.0,0.00020293,2]
[386574281,1758405307029,-8200.01,0.00020295,2]
[386574282,1758405307106,-10000.01,0.00020295,2]
[386574283,1758405307235,-10000.01,0.00020295,2]
[386574284,1758405307399,-10000.01,0.00020295,2]
[386574285,1758405307559,-10000.01,0.00020295,2]
[386574286,1758405307695,-10000.01,0.00020295,2]
[386574287,1758405307852,-10000.01,0.00020295,2]
[386574288,1758405308269,-10000.01,0.00020295,2]
[386574289,1758405308336,-10000.01,0.00020295,2]
[386574290,1758405308550,-10000.01,0.00020295,2]
[386574291,1758405310252,200.27710604,0.00019648,2]
[386574292,1758405326073,4100.3429094,0.00019423,2]
[386574293,1758405346880,-1200.0,0.00020294,2]
[386574294,1758405346941,-7600.01,0.00020295,2]
[386574295,1758405347164,-10000.01,0.00020295,2]
[386574296,1758405347282,-10000.01,0.00020295,2]
[386574297,1758405352252,-10000.01,0.00020295,2]
[386574298,1758405352390,-10000.01,0.00020295,2]
[386574299,1758405352535,-10000.01,0.00020295,2]
[386574300,1758405352663,-10000.01,0.00020295,2]
[386574301,1758405352823,-10000.01,0.00020295,2]
[386574302,1758405352941,-10000.01,0.00020295,2]
[386574303,1758405353090,500.0,0.000194,2]
[386574304,1758405353127,-10000.01,0.00020295,2]
[386574305,1758405353989,201.4739372,0.00019429,2]
[386574306,1758405364376,1311.4,0.00019384,2]
[386574307,1758405376841,-300.0,0.00020294,2]
[386574308,1758405376893,-9400.01,0.00020295,2]
[386574309,1758405376914,-10000.01,0.00020295,2]
[386574310,1758405376996,-10000.01,0.00020295,2]
[386574311,1758405377143,-10000.01,0.00020295,2]
[386574312,1758405377282,-10000.01,0.00020295,2]
[386574313,1758405377420,-10000.01,0.00020295,2]
[386574314,1758405377567,-10000.01,0.00020295,2]
[386574315,1758405377721,-10000.01,0.00020295,2]
[386574316,1758405377845,-10000.01,0.00020295,2]
[386574317,1758405377977,-10000.01,0.00020295,2]
[386574318,1758405406825,-1035.26978318,0.00020295,2]
[386574319,1758405414888,6596.97163182,0.000199,2]
[386574320,1758405424919,1332.49880182,0.00019399,2]
[386574321,1758405424944,10000.01,0.00019399,2]
[386574322,1758405424970,10000.01,0.00019399,2]
[386574323,1758405424995,4981.75908648,0.00019399,2]
[386574324,1758405427244,5000.0,0.00019942,2]
[386574325,1758405427416,18.25091352,0.00019178,2]
[386574326,1758405427440,4981.74908648,0.00019178,2]
[386574327,1758405427551,5000.0,0.00019178,2]
[386574328,1758405427688,18.26091352,0.00019178,2]
[386574329,1758405427713,1981.74601129,0.00019178,2]
[386574330,1758405429448,480.0,0.00020294,2]
[386574331,1758405442559,160.0,0.00020295,2]
[386574332,1758405443770,859.81,0.00020294,2]
[386574333,1758405450673,1098.0746805,0.00019399,2]
[386574334,1758405452661,1487.39,0.00019383,2]
[386574335,1758405464763,160.0,0.0002,3]
[386574336,1758405465554,160.0,0.0002,3]
[386574337,1758405471651,158.0,8e-07,2]
[386574338,1758405472693,158.0,8e-07,2]
[386574339,1758405473717,158.0,8e-07,2]
[386574340,1758405474804,158.0,8e-07,2]
[386574341,1758405475843,158.0,8e-07,2]
[386574342,1758405476867,158.0,8e-07,2]
[386574343,1758405479835,482.22800759,0.00020294,2]
[386574344,1758405486459,472.40709368,0.00020193,4]
[386574345,1758405493547,150.04578677,0.00020206,2]
[386574346,1758405513746,218.9053262,0.00019395,2]
[386574347,1758405515122,304.49848534,0.0002029,2]
[386574348,1758405533763,1036.90460863,0.00019575,2]
[386574349,1758405533793,431.55539137,0.00019575,2]
[386574350,1758405547959,9568.45460863,0.00019412,2]
[386574351,1758405547987,10000.01,0.00019412,2]
[386574352,1758405548015,10000.01,0.00019412,2]
[386574353,1758405548042,10000.01,0.00019412,2]
[386574354,1758405548068,2436.26719107,0.00019412,2]
[386574355,1758405559455,1463.46,0.00020294,2]
[386574356,1758405567623,6100.28280893,0.00020195,2]
[386574357,1758405567649,10000.01,0.00020195,2]
[386574358,1758405567676,10000.01,0.00020195,2]
[386574359,1758405567703,10000.01,0.00020195,2]
[386574360,1758405567729,10000.01,0.00020195,2]
[386574361,1758405567757,10000.01,0.00020195,2]
[386574362,1758405567784,10000.01,0.00020195,2]
[386574363,1758405567811,10000.01,0.00020195,2]
[386574364,1758405567837,10000.01,0.00020195,2]
[386574365,1758405567864,10000.01,0.00020195,2]
[386574367,1758405582130,-152.32,0.00020185,3]
[386574368,1758405583460,-1765.89956636,0.00020195,2]
[386574369,1758405585807,-10000.01,0.00020195,2]
[386574370,1758405585949,-10000.01,0.00020195,2]
[386574371,1758405586089,-10000.01,0.00020195,2]
[386574372,1758405586216,-10000.01,0.00020195,2]
[386574373,1758405586480,-10000.01,0.00020195,2]
[386574374,1758405586621,-10000.01,0.00020195,2]
[386574375,1758405586744,-10000.01,0.00020195,2]
[386574376,1758405586878,-10000.01,0.00020195,2]
[386574377,1758405587007,-10000.01,0.00020195,2]
[386574378,1758405587214,-10000.01,0.00020195,2]
[386574379,1758405593258,284.36474264,0.000194,2]
[386574380,1758405594188,1374.2025966,0.00019345,2]
[386574381,1758405595651,-297.07,0.000201,2]
[386574382,1758405597146,-563.71057685,0.000201,2]
[386574383,1758405597179,-457.0,0.00020185,3]
[386574384,1758405597235,-7958.5888463,0.00020195,2]
[386574385,1758405597268,-10000.01,0.00020195,2]
[386574386,1758405597427,-10000.01,0.00020195,2]
[386574387,1758405597590,-10000.01,0.00020195,2]
[386574388,1758405597729,-10000.01,0.00020195,2]
[386574389,1758405597868,-10000.01,0.00020195,2]
[386574390,1758405598026,-10000.01,0.00020195,2]
[386574391,1758405598363,-10000.01,0.00020195,2]
[386574392,1758405598481,-10000.01,0.00020195,2]
[386574393,1758405598617,-10000.01,0.00020195,2]
[386574395,1758405615648,1457.37,0.00019419,2]
[386574396,1758405623921,666.0,0.0001932,2]
[386574397,1758405624964,-260.18966095,0.000199,2]
[386574398,1758405633157,9334.01,0.0001932,2]
[386574399,1758405633183,665.99,0.0001932,2]
[386574400,1758405697407,1446.58,0.00019389,2]
[386574401,1758405702788,154.066319,0.00024,30]
[386574402,1758405730217,500.0,0.000193,2]
[386574403,1758405740469,500.0,0.000193,2]
[386574404,1758405740648,6887.44,0.00019349,2]
[386574405,1758405740673,10000.01,0.00019349,2]
[386574406,1758405740698,1729.1124884,0.00019349,2]
[386574407,1758405752709,500.0,0.000193,2]
[386574408,1758405754267,-242.90684718,0.000199,2]
[386574409,1758405763741,500.0,0.000193,2]
[386574410,1758405779722,1435.58,0.00019412,2]
[386574411,1758405781640,5835.3175116,0.00019196,2]
[386574412,1758405781671,10000.01,0.00019196,2]
[386574413,1758405781702,985.1399672,0.00019196,2]
[386574415,1758405814392,-160.17430248,0.000199,2]
[386574416,1758405828889,436.422849,0.00019194,2]
[386574417,1758405835135,1000.0,0.00019194,2]
[386574418,1758405860027,1419.35,0.00019414,2]
[386574419,1758405899190,500.0,0.000194,2]
[386574420,1758405910161,500.0,0.000194,2]
[386574421,1758405916863,250.0,0.00018924,2]
[386574422,1758405922699,500.0,0.000194,2]
[386574423,1758405941472,1401.28,0.00019409,2]
[386574424,1758405953133,-950.66112902,0.000199,2]
[386574425,1758405954507,207.0321659,0.000194,2]
[386574426,1758405969710,1989.119196,0.0001919,2]
[386574427,1758406023700,1383.45,0.00019389,2]
[386574428,1758406050083,-1585.43944258,0.000199,2]
[386574429,1758406082923,181.7,0.00015984,2]
[386574430,1758406083225,181.7,0.00015984,2]
[386574431,1758406107224,1371.0,0.00019391,2]
[386574432,1758406114569,760.2831069,0.00019184,2]
[386574433,1758406158122,-6749.32308101,0.000199,2]
[386574434,1758406158144,-151.80425748,0.0002,2]
[386574435,1758406158165,-194.31853431,0.00020091,2]
[386574436,1758406158187,-300.0,0.0002018,2]
[386574437,1758406158209,-19567.60574092,0.00020181,2]
[386574438,1758406188763,1353.55,0.00019389,2]
[386574899,1758406236488,1275.9751745,0.00019339,2]
[386574919,1758406236676,1051.13440078,0.00019575,2]
[386574948,1758406236972,452.09812182,0.00019576,2]
[386574949,1758406236997,45.79932118,0.00019576,2]
[386574958,1758406238083,-216.83704571,0.0002018,2]
[386574960,1758406238096,-310.13133761,0.0002018,2]
[386574962,1758406238110,-500.0,0.0002018,2]
[386574964,1758406238126,-500.0,0.0002018,2]
[386574965,1758406238139,-500.0,0.0002018,2]
[386574966,1758406238152,-500.0,0.0002018,2]
[386574967,1758406238166,-500.0,0.0002018,2]
[386574968,1758406238178,-500.0,0.0002018,2]
[386574969,1758406238191,-308.88777255,0.0002018,2]
[386574970,1758406238202,-500.0,0.0002018,2]
[386574971,1758406238215,-516.8662726,0.0002018,2]
[386574972,1758406238227,-500.0,0.0002018,2]
[386574974,1758406238239,-436.06582453,0.0002018,2]
[386574977,1758406238252,-500.0,0.0002018,2]
[386574979,1758406238265,-287.00024377,0.0002018,2]
[386574981,1758406238277,-300.0,0.0002018,2]
[386574984,1758406238291,-1168.66160864,0.0002018,2]
[386574987,1758406238309,-31.33839136,0.0002018,2]
[386574989,1758406238319,-1891.05155822,0.00020181,2]
[386574991,1758406238333,-28541.34270086,0.00020181,2]
[386574993,1758406238344,-1200.0,0.00020181,2]
[386574996,1758406238356,-480.0,0.00020182,2]
[386574998,1758406238370,-480.0,0.00020182,2]
[386575000,1758406238382,-480.0,0.00020182,2]
[386575002,1758406238393,-1049.86,0.00020182,2]
[386575004,1758406238404,-480.0,0.00020182,2]
[386575006,1758406238416,-20746.26328358,0.00020183,2]
[386575008,1758406238430,-480.0,0.00020193,2]
[386575010,1758406238440,-480.0,0.00020194,2]
[386575012,1758406238451,-250.95,0.00020194,2]
[386575014,1758406238463,-480.0,0.00020194,2]
[386575017,1758406238477,-480.0,0.00020194,2]
[386575019,1758406238489,-480.0,0.00020194,2]
[386575021,1758406238501,-480.0,0.00020194,2]
[386575023,1758406238512,-456.70201931,0.00020194,2]
[386575026,1758406238524,-233.69460141,0.00020194,2]
[386575028,1758406238536,-1654.64,0.00020194,2]
[386575030,1758406238547,-480.0,0.00020194,2]
[386575032,1758406238559,-480.0,0.00020194,2]
[386575034,1758406238571,-480.0,0.00020194,2]
[386575036,1758406238582,-1196.0,0.00020194,2]
[386575039,1758406238595,-1477.33,0.00020194,2]
[386575041,1758406238606,-480.0,0.00020194,2]
[386575043,1758406238618,-664.17,0.00020194,2]
[386575045,1758406238630,-480.0,0.00020194,2]
[386575047,1758406238642,-480.0,0.00020194,2]
[386575050,1758406238653,-480.0,0.00020194,2]
[386575052,1758406238664,-480.0,0.00020194,2]
[386575054,1758406238677,-710.5,0.00020194,2]
[386575056,1758406238688,-480.0,0.00020194,2]
[386575058,1758406238699,-480.0,0.00020194,2]
[386575061,1758406238711,-74174.94877841,0.00020195,2]
[386575063,1758406238722,-500.0,0.00020195,2]
[386575065,1758406238733,-169.74315109,0.000202,2]
[386575067,1758406238745,-17552.8119194,0.00020222,2]
[386575069,1758406238757,-151.80425749,0.00020274,2]
[386575071,1758406238769,-304.64,0.00020284,3]
[386575073,1758406238780,-2404.0,0.00020294,2]
[386575075,1758406238792,-480.0,0.00020294,2]
[386575077,1758406238805,-1270.64,0.00020294,2]
[386575080,1758406238817,-480.0,0.00020294,2]
[386575082,1758406238828,-2201.53,0.00020294,2]
[386575084,1758406238840,-1079.09,0.00020294,2]
[386575086,1758406238851,-480.0,0.00020294,2]
[386575088,1758406238863,-2707.1,0.00020313,2]